bitfinex/quotes_BTCUSD_20250408
["timestamp","ask_amount","ask_price","bid_price","bid_amount"]
[1744127250116,0.01470953,78625.0,78621.0,0.254384]
[1744127250460,0.01470953,78625.0,78624.0,0.267093]
[1744127250614,5.3e-07,78625.0,78624.0,0.44025164]
[1744127250811,0.000336,78642.0,78641.0,0.267036]
[1744127250812,1e-06,78642.0,78641.0,0.267036]
[1744127251057,1e-06,78642.0,78641.0,0.65781464]
[1744127251058,0.01133506,78642.0,78641.0,0.65781464]
[1744127251191,5.7e-07,78642.0,78641.0,1.03248812]
[1744127251393,0.0001679,78662.0,78652.0,0.266998]
[1744127251618,0.0001679,78662.0,78652.0,0.44015664]
[1744127252593,0.01344817,78659.0,78652.0,0.44015664]
[1744127253268,0.001336,78653.0,78652.0,0.44915664]
[1744127253497,0.001336,78653.0,78652.0,0.44015664]
[1744127253692,0.001336,78653.0,78652.0,0.44993139]
[1744127254622,0.001336,78653.0,78652.0,0.45793139]
[1744127254998,0.002336,78653.0,78652.0,0.46693139]
[1744127255233,0.002336,78653.0,78652.0,0.45893139]
[1744127255447,0.002336,78653.0,78652.0,0.46593139]
[1744127256377,0.002336,78653.0,78652.0,0.14225864]
[1744127256575,0.002336,78653.0,78652.0,0.15497264]
[1744127256960,0.002336,78653.0,78652.0,0.016]
[1744127257772,0.002336,78653.0,78652.0,0.021714]
[1744127257982,0.000336,78653.0,78650.0,0.254289]
[1744127258183,0.002336,78653.0,78650.0,0.254289]
[1744127258397,0.002336,78653.0,78652.0,0.001]
[1744127258627,0.000336,78653.0,78652.0,0.001]
[1744127259056,0.000336,78653.0,78652.0,0.003]
[1744127259274,0.267331,78653.0,78652.0,0.003]
[1744127259486,0.000336,78653.0,78652.0,0.269998]
[1744127259695,0.000336,78653.0,78652.0,0.274998]
[1744127260111,0.000336,78653.0,78652.0,0.008]
[1744127261172,0.267331,78653.0,78652.0,0.008]
[1744127261995,0.267331,78653.0,78652.0,0.006]
[1744127262192,0.27905218,78653.0,78652.0,0.006]
[1744127262400,0.254293,78650.0,78638.0,0.254327]
[1744127262632,0.254288,78651.0,78638.0,0.267044]
[1744127262836,0.41701229,78650.0,78637.0,0.012716]
[1744127263056,0.67130329,78650.0,78638.0,0.254329]
[1744127263392,0.01172118,78649.0,78637.0,0.25433]
[1744127263753,0.254299,78648.0,78635.0,0.254333]
[1744127263956,0.01172118,78649.0,78638.0,0.008]
[1744127264362,0.012715,78645.0,78631.0,0.16928]
[1744127264569,0.41701229,78641.0,78634.0,0.00012557]
[1744127264764,0.67133429,78641.0,78637.0,0.008]
[1744127265001,0.254317,78642.0,78638.0,0.009]
[1744127265217,0.254321,78641.0,78634.0,0.00012557]
[1744127265634,0.01172118,78640.0,78634.0,0.00012557]
[1744127266260,0.01172118,78640.0,78638.0,0.008]
[1744127266823,0.01172118,78639.0,78638.0,0.008]
[1744127267432,0.01172118,78639.0,78634.0,0.00312557]
[1744127267817,0.01172118,78639.0,78634.0,0.00612557]
[1744127268021,0.01172118,78639.0,78634.0,0.00012557]
[1744127268223,0.01172118,78638.0,78634.0,0.00012557]
[1744127268829,0.01172118,78638.0,78634.0,0.00212557]
[1744127269024,0.01172118,78638.0,78634.0,0.00712557]
[1744127269289,0.01172118,78637.0,78634.0,0.00212557]
[1744127270230,0.01172118,78636.0,78634.0,0.00012557]
[1744127270574,0.01172118,78636.0,78634.0,0.00912557]
[1744127270928,0.01172118,78636.0,78634.0,0.00012557]
[1744127271136,0.01172118,78636.0,78634.0,0.00612557]
[1744127271337,0.001,78637.0,78634.0,0.00312557]
[1744127271338,0.01172118,78635.0,78634.0,0.00312557]
[1744127271737,0.01172118,78635.0,78634.0,0.00612557]
[1744127272156,0.01172118,78635.0,78634.0,0.13538421]
[1744127273171,0.01172118,78635.0,78634.0,0.00912557]
[1744127273462,0.01172118,78635.0,78634.0,0.00012557]
[1744127273657,0.01172118,78635.0,78634.0,0.00312557]
[1744127273863,0.01272118,78635.0,78634.0,0.00912557]
[1744127274550,0.01272118,78635.0,78634.0,0.77965997]
[1744127274730,0.001,78635.0,78634.0,0.86881669]
[1744127274934,0.01,78640.0,78639.0,0.267042]
[1744127275244,0.01,78640.0,78639.0,0.39330064]
[1744127276326,0.254227,78670.0,78654.0,0.254277]
[1744127276485,0.01181856,78669.0,78656.0,0.254271]
[1744127276686,0.01181856,78669.0,78657.0,0.12625864]
[1744127277108,0.254235,78668.0,78657.0,0.12625864]
[1744127277333,0.02352284,78669.0,78657.0,0.12625864]
[1744127277534,0.03623384,78669.0,78657.0,0.12625864]
[1744127277751,0.254239,78666.0,78657.0,0.12625864]
[1744127277962,0.254255,78662.0,78653.0,0.16928]
[1744127278479,0.254252,78662.0,78653.0,0.16928]
[1744127278718,0.254256,78661.0,78653.0,0.16928]
[1744127279116,0.012713,78656.0,78641.0,0.16928]
[1744127279450,0.012715,78645.0,78642.0,0.12625864]
[1744127279640,0.267055,78635.0,78634.0,0.00012557]
[1744127279827,0.267055,78635.0,78612.0,0.37467348]
[1744127279828,0.254394,78619.0,78612.0,0.37467348]
[1744127280074,0.012719,78618.0,78602.0,0.0001679]
[1744127280260,0.254385,78621.0,78606.0,0.254431]
[1744127280450,0.254382,78622.0,78606.0,0.254431]
[1744127280656,0.267094,78624.0,78608.0,0.254425]
[1744127280888,0.41701229,78630.0,78612.0,0.12880265]
[1744127281104,0.254359,78629.0,78612.0,0.14152265]
[1744127281230,0.254366,78627.0,78613.0,0.25441]
[1744127281573,0.254366,78627.0,78614.0,0.12625864]
[1744127281930,0.26709,78626.0,78614.0,0.12625864]
[1744127282138,0.254414,78612.0,78611.0,0.011]
[1744127282337,0.267134,78612.0,78611.0,0.011]
[1744127282561,0.00773887,78612.0,78611.0,0.011]
[1744127282738,0.38841151,78612.0,78611.0,0.02]
[1744127282938,0.40295236,78612.0,78611.0,0.00309882]
[1744127283165,0.267165,78603.0,78602.0,0.0001679]
[1744127283323,0.26719,78596.0,78590.0,0.112991]
[1744127283532,0.012721,78606.0,78585.0,0.012725]
[1744127283533,0.267159,78605.0,78585.0,0.012725]
[1744127283768,0.25445,78601.0,78586.0,0.00254471]
[1744127283987,0.25445,78601.0,78581.0,0.256512]
[1744127283988,0.01162064,78601.0,78593.0,0.012723]
[1744127284125,0.254422,78610.0,78595.0,0.26719]
[1744127284490,0.267127,78615.0,78595.0,0.26719]
[1744127284491,0.16932,78618.0,78603.0,0.254443]
[1744127284680,0.002,78605.0,78603.0,0.12625864]
[1744127284865,0.002,78605.0,78603.0,0.12880279]
[1744127285692,0.002,78605.0,78597.0,0.0466]
[1744127285854,0.267143,78610.0,78598.0,0.12625864]
[1744127286447,0.002,78612.0,78598.0,0.12625864]
[1744127286585,0.01139356,78610.0,78602.0,0.012722]
[1744127286799,0.004,78605.0,78603.0,0.12625864]
[1744127287409,0.002,78612.0,78603.0,0.12625864]
[1744127287637,0.007,78612.0,78603.0,0.12625864]
[1744127288199,0.002,78612.0,78603.0,0.12625864]
[1744127288404,0.002,78612.0,78597.0,0.0466]
[1744127288405,0.012721,78608.0,78597.0,0.0466]
[1744127288848,0.26715,78608.0,78597.0,0.0466]
[1744127289082,0.002,78612.0,78597.0,0.0466]
[1744127289412,0.01272,78611.0,78597.0,0.0466]
[1744127289617,0.012721,78610.0,78597.0,0.0466]
[1744127289819,0.264428,78608.0,78597.0,0.0476]
[1744127290019,0.264428,78608.0,78595.0,0.00041873]
[1744127290020,0.254432,78607.0,78603.0,0.001]
[1744127290250,0.26623178,78607.0,78603.0,0.001]
[1744127290412,0.26623178,78607.0,78595.0,0.00041873]
[1744127290611,0.26623178,78607.0,78596.0,0.12625864]
[1744127290807,0.267155,78606.0,78595.0,0.00041873]
[1744127291024,0.01179978,78607.0,78597.0,0.001]
[1744127291458,0.01179978,78607.0,78597.0,0.12980315]
[1744127292099,0.254458,78599.0,78597.0,0.001]
[1744127292305,0.25445,78601.0,78597.0,0.001]
[1744127292529,0.267166,78603.0,78597.0,0.001]
[1744127292659,0.01179978,78600.0,78595.0,0.00041873]
[1744127292855,0.01179978,78600.0,78597.0,0.254458]
[1744127293117,0.01179978,78600.0,78599.0,0.012722]
[1744127293290,0.01179978,78600.0,78598.0,0.26718]
[1744127293517,0.01179978,78600.0,78599.0,0.39343664]
[1744127294121,0.012718,78628.0,78607.0,0.267151]
[1744127294261,0.012718,78627.0,78607.0,0.44210964]
[1744127294466,0.254386,78621.0,78607.0,0.44210964]
[1744127294770,0.01272,78616.0,78607.0,0.12625864]
[1744127294969,0.012722,78603.0,78599.0,0.59457348]
[1744127295170,0.267174,78600.0,78599.0,0.3249064]
[1744127295567,0.254407,78615.0,78599.0,0.002]
[1744127295770,0.012718,78625.0,78607.0,0.25443]
[1744127295974,0.012719,78622.0,78607.0,0.38068864]
[1744127296194,0.012718,78625.0,78607.0,0.39340964]
[1744127296403,0.01,78608.0,78607.0,0.39340964]
[1744127296635,0.01,78608.0,78607.0,0.13125864]
[1744127296636,0.011,78608.0,78607.0,0.13125864]
[1744127297047,0.01,78608.0,78607.0,0.13225864]
[1744127297332,0.01,78608.0,78607.0,0.12625864]
[1744127297557,0.01,78608.0,78607.0,0.13525864]
[1744127297767,0.01,78608.0,78607.0,0.45816504]
[1744127297898,0.01,78608.0,78607.0,0.72531604]
[1744127298515,0.01,78608.0,78607.0,0.45816504]
[1744127298703,0.01,78608.0,78607.0,0.72531604]
[1744127300346,0.01,78608.0,78607.0,0.77331604]
[1744127301668,0.277148,78608.0,78607.0,0.009]
[1744127302136,0.30076538,78608.0,78607.0,0.009]
[1744127302828,0.25446,78598.0,78593.0,0.3229064]
[1744127303067,0.254455,78600.0,78593.0,0.3229064]
[1744127303282,0.254455,78600.0,78589.0,0.0001679]
[1744127303283,0.267188,78596.0,78589.0,0.0001679]
[1744127303909,0.30260759,78596.0,78589.0,0.0001679]
[1744127304142,0.30260759,78596.0,78595.0,0.01541873]
[1744127304589,0.30260759,78596.0,78595.0,0.00041873]
[1744127304820,0.254483,78591.0,78583.0,0.3229064]
[1744127305055,0.012724,78588.0,78583.0,0.00012567]
[1744127305253,0.03541959,78590.0,78583.0,0.00012567]
[1744127305502,0.012725,78584.0,78583.0,0.00012567]
[1744127305876,0.012724,78587.0,78583.0,0.00012567]
[1744127306191,0.02361233,78586.0,78583.0,0.00012567]
[1744127306393,0.01180726,78585.0,78583.0,0.00012567]
[1744127306761,0.01180726,78585.0,78584.0,0.13898364]
[1744127306961,0.01180726,78585.0,78584.0,0.19022811]
[1744127307068,0.01180726,78585.0,78584.0,0.56113451]
[1744127307273,0.01180726,78585.0,78584.0,0.55859004]
[1744127307492,0.01,78588.0,78587.0,0.012724]
[1744127307844,0.01,78588.0,78587.0,0.39347764]
[1744127308821,0.01,78588.0,78587.0,0.56271764]
[1744127309768,0.03366014,78588.0,78587.0,0.57171764]
[1744127310186,0.03366014,78588.0,78587.0,0.56271764]
[1744127310647,0.03466014,78588.0,78587.0,0.31249864]
[1744127312012,0.03466014,78588.0,78587.0,0.57971764]
[1744127312209,0.03466014,78588.0,78587.0,0.41047764]
[1744127312691,0.03466014,78588.0,78587.0,0.73338404]
[1744127313822,0.03466014,78588.0,78587.0,0.90262404]
[1744127314021,0.011,78588.0,78587.0,0.90262404]
[1744127315028,0.011,78588.0,78587.0,0.46616504]
[1744127315343,0.265491,78588.0,78587.0,0.3399064]
[1744127315560,0.011,78588.0,78587.0,0.3399064]
[1744127315892,0.03467677,78588.0,78587.0,0.3399064]
[1744127316275,0.03467677,78588.0,78587.0,0.3309064]
[1744127316612,0.03467677,78588.0,78587.0,0.3379064]
[1744127316798,0.03367677,78588.0,78587.0,0.3229064]
[1744127317285,0.03367677,78588.0,78587.0,0.3329064]
[1744127317725,0.03367677,78588.0,78587.0,0.3279064]
[1744127318258,0.30089177,78588.0,78587.0,0.3299064]
[1744127318464,0.30089177,78588.0,78587.0,0.007]
[1744127318660,0.30089177,78588.0,78565.0,0.3229064]
[1744127318661,0.254563,78566.0,78565.0,0.3229064]
[1744127318885,0.25456,78567.0,78559.0,0.000168]
[1744127319086,0.41701229,78575.0,78563.0,0.012728]
[1744127319310,0.41701229,78575.0,78568.0,0.254556]
[1744127319544,0.02367677,78574.0,78568.0,0.12625864]
[1744127319911,0.012727,78573.0,78568.0,0.12625864]
[1744127320071,0.04823438,78573.0,78568.0,0.12625864]
[1744127320267,0.03550738,78573.0,78568.0,0.12625864]
[1744127320491,0.02367677,78572.0,78568.0,0.12625864]
[1744127320695,0.02367677,78572.0,78568.0,0.13025864]
[1744127320894,0.02367677,78572.0,78568.0,0.12625864]
[1744127321074,0.03550738,78571.0,78568.0,0.12725864]
[1744127321509,0.01183061,78571.0,78569.0,0.12880399]
[1744127321667,0.01183061,78571.0,78570.0,0.25455]
[1744127321868,0.01183061,78571.0,78570.0,0.12625864]
[1744127322138,0.03547109,78571.0,78570.0,0.12625864]
[1744127322913,0.01,78573.0,78570.0,0.13025864]
[1744127323133,0.01,78573.0,78571.0,0.12625864]
[1744127325204,0.03546328,78572.0,78571.0,0.12625864]
[1744127325621,0.03546328,78572.0,78571.0,0.12925864]
[1744127326178,0.03546328,78572.0,78571.0,0.39653164]
[1744127326333,0.03546328,78572.0,78571.0,0.12625864]
[1744127326713,0.03546328,78572.0,78571.0,0.13225864]
[1744127327523,0.29000628,78572.0,78571.0,0.006]
[1744127327745,0.012727,78567.0,78559.0,0.0002933]
[1744127327947,0.267306,78562.0,78559.0,0.0002933]
[1744127328171,0.02364187,78561.0,78559.0,0.0002933]
[1744127328371,0.02364187,78561.0,78560.0,0.254582]
[1744127328573,0.01182141,78566.0,78565.0,0.254566]
[1744127328890,0.01182141,78566.0,78561.0,0.267304]
[1744127328891,0.01182141,78566.0,78564.0,0.254569]
[1744127329096,0.02362959,78565.0,78564.0,0.12625864]
[1744127329588,0.01182141,78565.0,78564.0,0.38082764]
[1744127330494,0.035451,78565.0,78564.0,0.39355564]
[1744127330745,0.036451,78565.0,78564.0,0.39755564]
[1744127331076,0.01382141,78565.0,78564.0,0.77566204]
[1744127331701,0.002,78565.0,78564.0,0.77566204]
[1744127332312,0.02362215,78565.0,78564.0,0.77566204]
[1744127333655,0.012,78565.0,78564.0,0.77566204]
[1744127335031,0.02348373,78565.0,78564.0,0.77566204]
[1744127335238,0.012,78565.0,78564.0,0.77566204]
[1744127336507,0.012,78565.0,78564.0,0.46016504]
[1744127337123,0.02346404,78565.0,78564.0,0.46016504]
[1744127337501,0.0471098,78565.0,78564.0,0.46016504]
[1744127338598,0.0589379,78565.0,78564.0,0.46016504]
[1744127340011,0.3262319,78565.0,78564.0,0.011]
[1744127341087,0.3252319,78565.0,78564.0,0.007]
[1744127341320,0.3252319,78565.0,78564.0,0.008]
[1744127341548,0.267338,78552.0,78551.0,0.0021679]
[1744127341990,0.30281186,78552.0,78551.0,0.0021679]
[1744127342871,0.03547386,78552.0,78551.0,0.0021679]
[1744127343047,0.04147386,78552.0,78551.0,0.0031679]
[1744127343542,0.30881186,78552.0,78551.0,0.0031679]
[1744127343771,0.31781186,78552.0,78551.0,0.0031679]
[1744127344346,0.30881186,78552.0,78551.0,0.0031679]
[1744127344573,0.30881186,78552.0,78547.0,0.0003356]
[1744127344574,0.267348,78549.0,78547.0,0.0003356]
[1744127344892,0.22745407,78550.0,78547.0,0.0003356]
[1744127345092,0.267348,78549.0,78547.0,0.0003356]
[1744127345291,0.30282186,78549.0,78547.0,0.0003356]
[1744127346239,0.30282186,78549.0,78529.0,0.000168]
[1744127346240,0.254679,78530.0,78519.0,0.3230743]
[1744127346402,0.254679,78530.0,78520.0,0.012735]
[1744127346623,0.03547386,78529.0,78521.0,0.255106]
[1744127347029,0.03547386,78529.0,78522.0,0.254705]
[1744127347236,0.03547386,78529.0,78521.0,0.0004]
[1744127347438,0.04820786,78529.0,78521.0,0.0004]
[1744127348521,0.012737,78511.0,78508.0,0.0003358]
[1744127348694,0.254736,78513.0,78508.0,0.0003358]
[1744127348899,0.41701229,78518.0,78509.0,0.13899564]
[1744127349133,0.012736,78516.0,78509.0,0.12625864]
[1744127349480,0.03547386,78517.0,78509.0,0.12625864]
[1744127349722,0.03547386,78517.0,78514.0,0.254728]
[1744127350044,0.02364576,78516.0,78514.0,0.0004193]
[1744127350264,0.02364576,78515.0,78514.0,0.0004193]
[1744127350473,0.03547386,78515.0,78514.0,0.0004193]
[1744127351072,0.03547386,78515.0,78514.0,0.12667794]
[1744127351246,0.03547386,78515.0,78514.0,0.3966919]
[1744127351455,0.03547386,78515.0,78514.0,0.39414494]
[1744127351849,0.04716493,78515.0,78514.0,0.0004193]
[1744127352188,0.04816493,78515.0,78514.0,0.0014193]
[1744127352618,0.06090093,78515.0,78514.0,0.0014193]
[1744127353576,0.267511,78501.0,78500.0,0.002]
[1744127353779,0.267511,78501.0,78500.0,0.00012561]
[1744127354063,0.29115676,78501.0,78500.0,8.561e-05]
[1744127354655,0.30298486,78501.0,78500.0,8.561e-05]
[1744127354855,0.30398486,78501.0,78500.0,8.561e-05]
[1744127355239,0.3427408,78501.0,78500.0,8.561e-05]
[1744127355463,0.37988587,78501.0,78500.0,8.561e-05]
[1744127356021,0.34012993,78501.0,78500.0,8.561e-05]
[1744127356295,0.38688587,78501.0,78500.0,8.561e-05]
[1744127356496,0.39288587,78501.0,78500.0,8.561e-05]
[1744127356746,0.39288587,78501.0,78485.0,0.000168]
[1744127356747,0.267563,78486.0,78485.0,0.000168]
[1744127356918,0.254858,78475.0,78468.0,0.254879]
[1744127357117,0.254853,78477.0,78471.0,0.25487]
[1744127357272,0.254853,78477.0,78472.0,0.00029346]
[1744127357648,0.012743,78473.0,78472.0,0.00029346]
[1744127357963,0.04821686,78473.0,78472.0,0.00029346]
[1744127358822,0.0600135,78473.0,78472.0,0.00029346]
[1744127359049,0.0600135,78473.0,78457.0,0.3229064]
[1744127359050,0.267645,78462.0,78457.0,0.3229064]
[1744127359348,0.02364576,78462.0,78461.0,0.00052582]
[1744127359814,0.02364576,78462.0,78461.0,0.25542882]
[1744127360048,0.02364576,78462.0,78461.0,0.00052582]
[1744127360837,0.13647386,78462.0,78461.0,0.00052582]
[1744127361050,0.13647386,78462.0,78461.0,0.01327082]
[1744127361252,0.13647386,78462.0,78461.0,0.00052582]
[1744127362060,0.13747386,78462.0,78461.0,0.00052582]
[1744127362671,0.13647386,78462.0,78461.0,0.00052582]
[1744127362879,0.13547386,78462.0,78461.0,0.00052582]
[1744127363085,0.13647386,78462.0,78461.0,0.01327082]
[1744127363285,0.13647386,78462.0,78461.0,0.39698136]
[1744127363468,0.13647386,78462.0,78461.0,0.39443246]
[1744127363664,0.101,78462.0,78461.0,0.39443246]
[1744127364850,0.39201801,78462.0,78461.0,0.00052582]
[1744127364965,0.12437301,78462.0,78461.0,0.00052582]
[1744127365824,0.13606413,78462.0,78461.0,0.00052582]
[1744127366022,0.13606413,78462.0,78461.0,0.39443246]
[1744127366353,0.13606413,78462.0,78461.0,0.12678446]
[1744127366917,0.13506413,78462.0,78461.0,0.12678446]
[1744127367128,0.40270913,78462.0,78461.0,0.00052582]
[1744127367330,0.012746,78454.0,78453.0,0.0001681]
[1744127367526,0.267672,78454.0,78453.0,0.00029385]
[1744127367734,0.254926,78454.0,78453.0,0.00029385]
[1744127368195,0.28999013,78454.0,78453.0,0.00029385]
[1744127368324,0.03506413,78454.0,78453.0,0.00029385]
[1744127368763,0.28999013,78454.0,78453.0,0.00029385]
[1744127368967,0.30273613,78454.0,78453.0,0.00029385]
[1744127369606,0.03506413,78454.0,78453.0,0.00029385]
[1744127369810,0.28999013,78454.0,78453.0,0.00029385]
[1744127370164,0.03606413,78454.0,78453.0,0.00029385]
[1744127370335,0.03506413,78454.0,78453.0,0.00029385]
[1744127371228,0.30273613,78454.0,78453.0,0.00029385]
[1744127372743,0.31727698,78454.0,78453.0,0.00029385]
[1744127372956,0.31727698,78454.0,78435.0,0.000168]
[1744127372957,0.254984,78436.0,78435.0,0.000168]
[1744127373162,0.29110601,78436.0,78435.0,0.000168]
[1744127373990,0.02337301,78436.0,78435.0,0.000168]
[1744127374607,0.03506413,78436.0,78435.0,0.000168]
[1744127375131,0.03606413,78436.0,78435.0,0.000168]
[1744127375270,0.30279713,78436.0,78435.0,0.000168]
[1744127376520,0.29004813,78436.0,78435.0,0.000168]
[1744127376724,0.03506413,78436.0,78435.0,0.000168]
[1744127377071,0.63304813,78436.0,78435.0,0.000168]
[1744127377191,0.64579713,78436.0,78435.0,0.000168]
[1744127377843,0.64679713,78436.0,78435.0,0.000168]
[1744127378050,0.30679713,78436.0,78435.0,0.000168]
[1744127379431,0.03906413,78436.0,78435.0,0.000168]
[1744127379646,0.29404813,78436.0,78435.0,0.000168]
[1744127380041,0.30679713,78436.0,78435.0,0.000168]
[1744127380448,0.43305577,78436.0,78435.0,0.000168]
[1744127380744,0.255004,78430.0,78429.0,0.0001681]
[1744127380992,0.267757,78429.0,78428.0,0.0068161]
[1744127381192,0.27944812,78429.0,78428.0,0.0068161]
[1744127381602,0.267781,78422.0,78409.0,0.255069]
[1744127382001,0.29115401,78422.0,78421.0,0.00058771]
[1744127382155,0.30284513,78422.0,78421.0,0.00058771]
[1744127382617,0.29009413,78422.0,78421.0,0.00058771]
[1744127382811,0.30284513,78422.0,78421.0,0.00058771]
[1744127383031,0.03506413,78422.0,78421.0,0.00058771]
[1744127383217,0.30284513,78422.0,78421.0,0.00058771]
[1744127383423,0.10727937,78422.0,78421.0,0.00058771]
[1744127383967,0.0676921,78423.0,78421.0,0.00058771]
[1744127384120,0.607781,78422.0,78421.0,0.00058771]
[1744127385597,0.342,78422.0,78421.0,0.00058771]
[1744127385801,0.59703,78422.0,78421.0,0.00058771]
[1744127386007,0.609781,78422.0,78421.0,0.00058771]
[1744127386375,0.62170709,78422.0,78421.0,0.00058771]
[1744127386544,0.35392609,78422.0,78421.0,0.00058771]
[1744127386988,0.62170709,78422.0,78421.0,0.00058771]
[1744127387420,0.35392609,78422.0,78421.0,0.00058771]
[1744127387620,0.36967709,78422.0,78421.0,0.00058771]
[1744127387847,0.62270709,78422.0,78421.0,0.00058771]
[1744127388058,0.61970709,78422.0,78421.0,0.00058771]
[1744127388503,0.61970709,78422.0,78421.0,0.00258771]
[1744127389674,0.61970709,78422.0,78421.0,0.00058771]
[1744127389880,0.62370709,78422.0,78421.0,0.00058771]
[1744127390117,0.61095609,78422.0,78421.0,0.00058771]
[1744127390343,0.61970709,78422.0,78421.0,0.00058771]
[1744127390554,0.35192609,78422.0,78421.0,0.00058771]
[1744127390755,0.61295609,78422.0,78421.0,0.00058771]
[1744127390930,0.61095609,78422.0,78421.0,0.00058771]
[1744127391335,0.62570709,78422.0,78421.0,0.00058771]
[1744127391499,0.61295609,78422.0,78421.0,0.00058771]
[1744127392145,0.62570709,78422.0,78421.0,0.00058771]
[1744127392552,0.35792609,78422.0,78421.0,0.00058771]
[1744127392750,0.62570709,78422.0,78421.0,0.00058771]
[1744127392962,0.61295609,78422.0,78421.0,0.00058771]
[1744127393818,0.62570709,78422.0,78421.0,0.00058771]
[1744127393999,0.61295609,78422.0,78421.0,0.00058771]
[1744127394765,0.35792609,78422.0,78421.0,0.25562071]
[1744127395447,0.61295609,78422.0,78421.0,0.00058771]
[1744127395671,0.35592609,78422.0,78421.0,0.00058771]
[1744127395893,0.35592609,78422.0,78421.0,0.26837171]
[1744127396115,0.35592609,78422.0,78421.0,0.00058771]
[1744127396303,0.60695609,78422.0,78421.0,0.00058771]
[1744127396529,0.35192609,78422.0,78421.0,0.00158771]
[1744127396768,0.35192609,78422.0,78421.0,0.01433871]
[1744127396999,0.35192609,78422.0,78421.0,0.44363035]
[1744127397469,0.35292609,78422.0,78421.0,0.44463035]
[1744127399509,0.341,78422.0,78421.0,0.76753675]
[1744127399716,0.35306192,78422.0,78421.0,0.76753675]
[1744127400436,0.341,78422.0,78421.0,0.76753675]
[1744127400640,0.001,78422.0,78421.0,0.81343675]
[1744127401820,0.1,78429.0,78428.0,0.26776]
[1744127402024,0.1,78429.0,78428.0,0.39401864]
[1744127402392,0.1,78429.0,78428.0,0.12625864]
[1744127402587,0.267781,78422.0,78421.0,0.32849411]
[1744127403047,0.267781,78422.0,78421.0,0.32349411]
[1744127403206,0.02367379,78422.0,78421.0,0.32349411]
[1744127403401,0.02367379,78422.0,78421.0,0.71753675]
[1744127403587,0.02467379,78422.0,78421.0,0.72153675]
[1744127403803,0.001,78422.0,78421.0,0.72153675]
[1744127404004,0.11223527,78429.0,78428.0,0.25501]
[1744127404364,0.12407394,78429.0,78428.0,0.39401864]
[1744127405184,0.11223527,78429.0,78428.0,0.48731864]
[1744127405340,0.11223527,78429.0,78428.0,0.81022504]
[1744127405545,0.1,78429.0,78428.0,0.81022504]
[1744127405776,0.1,78429.0,78428.0,0.81322504]
[1744127406446,0.1,78429.0,78428.0,0.81022504]
[1744127406624,0.1,78429.0,78428.0,0.81422504]
[1744127406922,0.101,78429.0,78428.0,0.81522504]
[1744127407324,0.102,78429.0,78428.0,0.81922504]
[1744127409006,0.102,78429.0,78428.0,0.45816504]
[1744127409158,0.102,78429.0,78428.0,0.71317504]
[1744127409556,0.101,78429.0,78428.0,0.72092504]
[1744127409784,0.1,78429.0,78428.0,0.71692504]
[1744127409987,0.101,78429.0,78428.0,0.72192504]
[1744127410205,0.102,78429.0,78428.0,0.72592504]
[1744127410794,0.101,78429.0,78428.0,0.72092504]
[1744127410990,0.1,78429.0,78428.0,0.71692504]
[1744127411423,0.101,78429.0,78428.0,0.72092504]
[1744127411633,0.1,78429.0,78428.0,0.71692504]
[1744127412596,0.1,78429.0,78428.0,0.71992504]
[1744127412840,0.101,78429.0,78428.0,0.72692504]
[1744127413253,0.101,78429.0,78428.0,0.72392504]
[1744127413494,0.101,78429.0,78428.0,0.72892504]
[1744127413635,0.0003364,78455.0,78454.0,0.267672]
[1744127413837,0.2680054,78455.0,78454.0,0.12625864]
[1744127414046,0.0003364,78455.0,78453.0,0.5778354]
[1744127414251,0.0003364,78455.0,78454.0,0.39393064]
[1744127414452,0.0003364,78455.0,78454.0,0.71683704]
[1744127414855,0.00046168,78455.0,78454.0,0.71683704]
[1744127415858,0.26813068,78455.0,78454.0,0.44916504]
[1744127416057,0.26813068,78455.0,78454.0,0.3239064]
[1744127416255,0.26813068,78455.0,78454.0,0.3229064]
[1744127416661,0.26813068,78455.0,78454.0,0.3269064]
[1744127416847,0.26813068,78455.0,78454.0,0.3229064]
[1744127417041,0.30362632,78455.0,78454.0,0.3229064]
[1744127417247,0.30362632,78455.0,78454.0,0.3239064]
[1744127417589,0.30362632,78455.0,78454.0,0.3229064]
[1744127417811,0.30362632,78455.0,78454.0,0.3239064]
[1744127418184,0.30362632,78455.0,78454.0,0.001]
[1744127418388,0.254966,78442.0,78439.0,0.3229064]
[1744127418636,0.012748,78439.0,78430.0,0.00978051]
[1744127418768,0.267703,78445.0,78438.0,0.267724]
[1744127418967,0.24828371,78454.0,78444.0,0.254955]
[1744127418968,0.012746,78451.0,78444.0,0.254955]
[1744127419168,0.254949,78447.0,78443.0,0.267709]
[1744127419379,0.254958,78444.0,78443.0,0.12625864]
[1744127419790,0.267705,78444.0,78443.0,0.12625864]
[1744127420368,0.267719,78440.0,78439.0,0.007]
[1744127420572,0.25498,78438.0,78434.0,0.254988]
[1744127420791,0.012748,78443.0,78436.0,0.254981]
[1744127420792,0.254975,78439.0,78436.0,0.254981]
[1744127420996,0.27953686,78444.0,78440.0,0.254968]
[1744127421410,0.03550849,78443.0,78441.0,0.12625864]
[1744127421663,0.03550849,78443.0,78441.0,0.38122564]
[1744127421866,0.03550849,78443.0,78441.0,0.12625864]
[1744127422120,0.02457986,78443.0,78408.0,1.330366]
[1744127422277,0.27954686,78442.0,78438.0,0.254976]
[1744127422473,0.01183186,78442.0,78441.0,0.254968]
[1744127422902,0.01183186,78442.0,78441.0,0.39397464]
[1744127423122,0.01183186,78442.0,78441.0,0.40097464]
[1744127423321,0.01183186,78442.0,78441.0,0.39397464]
[1744127423800,0.01183186,78442.0,78441.0,0.40097464]
[1744127423979,0.01183186,78442.0,78441.0,0.40697464]
[1744127424186,0.26679686,78442.0,78441.0,0.3359064]
[1744127424345,0.27954486,78442.0,78441.0,0.3299064]
[1744127424755,0.28054486,78442.0,78441.0,0.3359064]
[1744127425323,0.3042605,78442.0,78441.0,0.3359064]
[1744127425797,0.3042605,78442.0,78441.0,0.32450348]
[1744127425994,0.267781,78422.0,78421.0,0.000168]
[1744127426382,0.27961286,78422.0,78421.0,0.000168]
[1744127426563,0.3033285,78422.0,78421.0,0.000168]
[1744127427306,0.267843,78404.0,78403.0,0.0001681]
[1744127427644,0.061653,78407.0,78391.0,0.26620348]
[1744127427645,0.267884,78392.0,78391.0,0.26620348]
[1744127427860,0.012756,78391.0,78389.0,0.0001682]
[1744127428385,0.01183186,78391.0,78390.0,0.00041971]
[1744127428620,0.0355475,78391.0,78390.0,0.00041971]